fUST/lending_fUST_20241203
["ID","MTS","AMOUNT","RATE_DAILY","PERIOD"]
[344005968,1733181048527,-500.0,0.00027671,7]
[344005969,1733181048538,-168.0,0.00027671,7]
[344005970,1733181048548,-500.0,0.00027671,7]
[344005971,1733181048558,-500.0,0.00027671,7]
[344005972,1733181048568,-479.97231527,0.00027671,7]
[344005973,1733181048578,-500.0,0.00027671,7]
[344005974,1733181048588,-520.54380443,0.00027671,7]
[344005975,1733181048597,-500.0,0.00027671,7]
[344005976,1733181048607,-500.0,0.00027671,7]
[344005977,1733181048616,-500.0,0.00027671,7]
[344005978,1733181048625,-481.28188634,0.00027671,7]
[344005979,1733181048635,-500.0,0.00027671,7]
[344005980,1733181048644,-500.0,0.00027671,7]
[344005981,1733181048654,-500.0,0.00027671,7]
[344005982,1733181048664,-500.0,0.00027671,7]
[344005983,1733181048673,-500.0,0.00027671,7]
[344005984,1733181048684,-500.0,0.00027671,7]
[344005985,1733181048694,-500.0,0.00027671,7]
[344005986,1733181048704,-2146.52,0.00027671,7]
[344005987,1733181048783,-340.80700841,0.00027671,7]
[344005988,1733181048793,-500.0,0.00027671,7]
[344005989,1733181048803,-763.84,0.00027671,7]
[344005990,1733181048815,-500.0,0.00027671,7]
[344005991,1733181048825,-325.38507829,0.00027671,7]
[344005992,1733181048834,-500.0,0.00027671,7]
[344005993,1733181048844,-500.0,0.00027671,7]
[344005994,1733181048853,-500.0,0.00027671,7]
[344005995,1733181048863,-500.0,0.00027671,7]
[344005996,1733181048873,-514.6622584,0.00027671,7]
[344005997,1733181048882,-150.14,0.00027671,2]
[344005998,1733181048892,-500.0,0.00027671,7]
[344005999,1733181048902,-500.0,0.00027671,7]
[344006000,1733181048912,-500.0,0.00027671,7]
[344006001,1733181048922,-500.0,0.00027671,7]
[344006002,1733181048931,-500.0,0.00027671,7]
[344006003,1733181048942,-500.0,0.00027671,7]
[344006004,1733181048952,-500.0,0.00027671,7]
[344006005,1733181048962,-258.95501702,0.00027671,7]
[344006006,1733181048975,-640.26,0.00027671,7]
[344006007,1733181048987,-500.0,0.00027671,7]
[344006008,1733181048998,-500.0,0.00027671,7]
[344006009,1733181049009,-500.0,0.00027671,7]
[344006010,1733181049020,-500.0,0.00027671,7]
[344006011,1733181049031,-569.9369643,0.00027671,7]
[344006012,1733181049041,-500.0,0.00027671,2]
[344006013,1733181049051,-500.0,0.00027671,7]
[344006014,1733181049062,-500.0,0.00027671,7]
[344006015,1733181049074,-492.0560215,0.00027671,7]
[344006016,1733181049084,-815.86,0.00027671,7]
[344006017,1733181049095,-500.0,0.00027671,7]
[344006018,1733181049105,-514.31470326,0.00027671,7]
[344006019,1733181049115,-500.0,0.00027671,7]
[344006020,1733181049126,-500.0,0.00027671,7]
[344006021,1733181049137,-500.0,0.00027671,7]
[344006022,1733181049147,-551.25702249,0.00027671,7]
[344006023,1733181049159,-500.0,0.00027671,7]
[344006024,1733181049169,-500.0,0.00027671,7]
[344006025,1733181049179,-503.74640126,0.00027671,7]
[344006026,1733181049189,-998.4,0.00027671,7]
[344006027,1733181049200,-848.36,0.00027671,7]
[344006028,1733181049212,-355.16767069,0.00027671,7]
[344006029,1733181049224,-500.0,0.00027671,7]
[344006030,1733181049235,-7886.73,0.00027671,7]
[344006031,1733181049245,-500.0,0.00027671,7]
[344006032,1733181049255,-681.55,0.00027671,7]
[344006033,1733181049264,-500.0,0.00027671,7]
[344006034,1733181049273,-500.0,0.00027671,7]
[344006035,1733181049284,-500.0,0.00027671,7]
[344006036,1733181049294,-500.0,0.00027671,7]
[344006037,1733181049304,-5391.34,0.00027671,7]
[344006038,1733181049318,-650.95,0.00027671,7]
[344006039,1733181049328,-500.0,0.00027671,7]
[344006040,1733181049338,-500.0,0.00027671,7]
[344006041,1733181049347,-500.0,0.00027671,7]
[344006042,1733181049357,-500.0,0.00027671,7]
[344006043,1733181049367,-1995.74,0.00027671,7]
[344006044,1733181049377,-500.0,0.00027671,7]
[344006045,1733181049387,-500.0,0.00027671,7]
[344006046,1733181049397,-500.0,0.00027671,7]
[344006047,1733181049407,-726.5,0.00027671,7]
[344006048,1733181049416,-500.0,0.00027671,7]
[344006049,1733181049426,-500.0,0.00027671,7]
[344006050,1733181049436,-500.0,0.00027671,7]
[344006051,1733181049445,-500.0,0.00027671,7]
[344006052,1733181049455,-500.0,0.00027671,7]
[344006053,1733181049466,-500.0,0.00027671,7]
[344006054,1733181049476,-500.0,0.00027671,7]
[344006055,1733181049487,-474.2706081,0.00027671,5]
[344006056,1733181049497,-503.9935774,0.00027671,7]
[344006057,1733181049507,-500.0,0.00027671,7]
[344006058,1733181049517,-1155.9,0.00027671,7]
[344006059,1733181049527,-151.72969487,0.00027671,7]
[344006060,1733181049537,-500.0,0.00027671,7]
[344006061,1733181049547,-500.0,0.00027671,7]
[344006062,1733181049557,-500.0,0.00027671,7]
[344006063,1733181049567,-500.0,0.00027671,7]
[344006064,1733181049576,-500.0,0.00027671,7]
[344006065,1733181049587,-500.0,0.00027671,7]
[344006066,1733181049597,-611.93,0.00027671,7]
[344006067,1733181049606,-480.844,0.00027671,7]
[344006068,1733181049616,-2198.66,0.00027671,7]
[344006069,1733181049626,-271.6,0.00027671,7]
[344006070,1733181049635,-500.0,0.00027671,7]
[344006071,1733181049645,-500.0,0.00027671,7]
[344006072,1733181049655,-500.0,0.00027671,7]
[344006073,1733181049665,-500.0,0.00027671,7]
[344006074,1733181049675,-500.0,0.00027671,7]
[344006075,1733181049684,-500.0,0.00027671,7]
[344006076,1733181049694,-500.0,0.00027671,7]
[344006077,1733181049704,-500.0,0.00027671,7]
[344006078,1733181049713,-500.0,0.00027671,7]
[344006079,1733181049725,-500.0,0.00027671,7]
[344006080,1733181049734,-500.0,0.00027671,7]
[344006081,1733181049743,-500.0,0.00027671,7]
[344006082,1733181049753,-333.53140816,0.00027671,7]
[344006083,1733181049763,-500.0,0.00027671,7]
[344006084,1733181049773,-500.0,0.00027671,7]
[344006085,1733181049783,-555.5258541,0.00027671,7]
[344006086,1733181049793,-490.0,0.00027671,2]
[344006087,1733181049803,-500.0,0.00027673,5]
[344006088,1733181049813,-500.0,0.00027673,5]
[344006089,1733181049823,-500.0,0.00027673,5]
[344006090,1733181049833,-500.0,0.00027673,5]
[344006091,1733181049844,-528.69352179,0.00027673,5]
[344006092,1733181049854,-157.42182974,0.00027673,5]
[344006093,1733181049863,-500.0,0.00027673,5]
[344006094,1733181049873,-500.0,0.00027673,5]
[344006095,1733181049882,-446.13968757,0.00027673,5]
[344006096,1733181049892,-3000.0,0.0002768,2]
[344006097,1733181049902,-3000.0,0.0002769,2]
[344006098,1733181049911,-3000.0,0.000277,2]
[344006099,1733181049921,-3000.0,0.0002771,2]
[344006100,1733181049930,-3000.0,0.0002772,2]
[344006101,1733181049940,-790.14807,0.00027724,15]
[344006102,1733181049949,-3000.0,0.0002773,2]
[344006103,1733181049959,-286.126167,0.0002773,7]
[344006104,1733181049969,-286.126167,0.0002773,7]
[344006105,1733181049979,-3000.0,0.0002774,2]
[344006106,1733181049988,-3000.0,0.0002775,2]
[344006107,1733181049998,-3000.0,0.0002776,2]
[344006108,1733181050008,-3000.0,0.0002777,2]
[344006109,1733181050018,-3000.0,0.0002778,2]
[344006110,1733181050027,-3000.0,0.0002779,2]
[344006111,1733181050037,-3122.582158,0.000278,2]
[344006112,1733181050047,-1140.62748763,0.00027845,2]
[344006113,1733181050057,-1152.80810294,0.00027849,2]
[344006114,1733181050067,-10639.28729739,0.000279,3]
[344006115,1733181050076,-1169.27083333,0.000279,3]
[344006116,1733181050086,-150.14,0.00027945,2]
[344006117,1733181050096,-500.0,0.00027945,7]
[344006118,1733181050106,-500.0,0.00027945,7]
[344006119,1733181050115,-500.0,0.00027945,7]
[344006120,1733181050125,-500.0,0.00027945,7]
[344006121,1733181050134,-500.0,0.00027945,7]
[344006122,1733181050143,-500.0,0.00027945,7]
[344006123,1733181050153,-500.0,0.00027945,7]
[344006124,1733181050162,-500.0,0.00027945,7]
[344006125,1733181050172,-500.0,0.00027945,7]
[344006126,1733181050181,-500.0,0.00027945,7]
[344006127,1733181050191,-637.42213924,0.00027945,7]
[344006128,1733181050204,-500.0,0.00027945,7]
[344006129,1733181050213,-500.0,0.00027945,7]
[344006130,1733181050224,-500.0,0.00027945,7]
[344006131,1733181050234,-500.0,0.00027945,7]
[344006132,1733181050245,-500.0,0.00027945,7]
[344006133,1733181050254,-500.0,0.00027945,7]
[344006134,1733181050264,-500.0,0.00027945,7]
[344006135,1733181050274,-500.0,0.00027945,7]
[344006136,1733181050287,-500.0,0.00027945,7]
[344006137,1733181050296,-500.0,0.00027945,7]
[344006138,1733181050306,-500.0,0.00027945,7]
[344006139,1733181050315,-500.0,0.00027945,7]
[344006140,1733181050325,-500.0,0.00027945,7]
[344006141,1733181050398,-500.0,0.00027945,7]
[344006142,1733181050408,-500.0,0.00027945,7]
[344006143,1733181050417,-500.0,0.00027945,7]
[344006144,1733181050427,-500.0,0.00027945,7]
[344006145,1733181050436,-500.0,0.00027945,7]
[344006146,1733181050446,-500.0,0.00027945,7]
[344006147,1733181050455,-102.77038017,0.00027945,7]
[344006150,1733181174005,163.19526,0.00013973,2]
[344006157,1733181863059,163.19526,0.00013973,2]
[344006301,1733182238167,-464.80127709,0.0001883,2]
[344006302,1733182238179,-93.90411591,0.0001883,2]
[344006303,1733182238189,-1169.27083333,0.0002,2]
[344006304,1733182238199,-362.57512031,0.00021,5]
[344006305,1733182238209,-163.19526,0.00023435,2]
[344006306,1733182238219,-169.895151,0.00025463,2]
[344006307,1733182238229,-300.0,0.00025539,2]
[344006309,1733182238238,-300.0,0.00025539,2]
[344006311,1733182238249,-927.61921445,0.0002554,2]
[344006323,1733182240314,-695.70864234,0.0002554,2]
[344006324,1733182240326,-701.46346679,0.0002554,2]
[344006325,1733182240337,-261.546,0.0002554,2]
[344006326,1733182240349,-22313.66267642,0.0002554,2]
[344006327,1733182240359,-1024.34915221,0.00025878,2]
[344006328,1733182240369,-155.00000009,0.00026481,2]
[344006329,1733182240379,-196.761,0.00026575,13]
[344006330,1733182240389,-204.0,0.000269,20]
[344006331,1733182240399,-367.0,0.00027,2]
[344006332,1733182240408,-153.0,0.00027,2]
[344006333,1733182240418,-556.06612765,0.00027287,2]
[344006334,1733182240428,-4442.05,0.00027387,10]
[344006335,1733182240438,-7849.84,0.00027387,10]
[344006336,1733182240449,-6541.53,0.00027387,10]
[344006337,1733182240459,-5451.28,0.00027387,10]
[344006338,1733182240468,-592.85995053,0.00027387,2]
[344006339,1733182240576,-1169.27083333,0.00027397,7]
[344006340,1733182240587,-1169.27083333,0.00027397,7]
[344006341,1733182240597,-1169.27083333,0.00027397,7]
[344006342,1733182240608,-553.3882334,0.00027397,7]
[344006343,1733182240618,-500.0,0.00027397,7]
[344006344,1733182240628,-225.1,0.00027397,7]
[344006345,1733182240637,-500.0,0.00027397,7]
[344006346,1733182240649,-282.05716843,0.00027397,7]
[344006347,1733182240659,-500.0,0.00027397,7]
[344006348,1733182240669,-500.0,0.00027397,7]
[344006349,1733182240679,-500.0,0.00027397,7]
[344006350,1733182240688,-500.0,0.00027397,7]
[344006351,1733182240698,-500.0,0.00027397,7]
[344006352,1733182240708,-500.0,0.00027397,7]
[344006353,1733182240717,-500.0,0.00027397,7]
[344006354,1733182240727,-500.0,0.00027397,7]
[344006355,1733182240737,-500.0,0.00027397,7]
[344006356,1733182240749,-500.0,0.00027397,7]
[344006357,1733182240759,-462.56770734,0.00027397,7]
[344006358,1733182240769,-500.0,0.00027397,7]
[344006359,1733182240779,-500.0,0.00027397,7]
[344006360,1733182240788,-500.0,0.00027397,7]
[344006361,1733182240798,-500.0,0.00027397,7]
[344006362,1733182240807,-505.96533414,0.00027397,7]
[344006363,1733182240817,-500.0,0.00027397,7]
[344006364,1733182240827,-500.0,0.00027397,7]
[344006365,1733182240837,-500.0,0.00027397,7]
[344006366,1733182240847,-509.13654521,0.00027397,7]
[344006367,1733182240857,-500.0,0.00027397,7]
[344006368,1733182240867,-500.0,0.00027397,7]
[344006369,1733182240876,-500.0,0.00027397,7]
[344006370,1733182240886,-505.17573825,0.00027397,7]
[344006371,1733182240896,-582.21280644,0.00027397,7]
[344006372,1733182240905,-500.0,0.00027397,7]
[344006373,1733182240915,-500.0,0.00027397,7]
[344006374,1733182240925,-500.0,0.00027397,7]
[344006375,1733182240936,-492.46042668,0.00027397,7]
[344006376,1733182240946,-500.0,0.00027397,7]
[344006377,1733182240955,-500.0,0.00027397,7]
[344006378,1733182240966,-617.47,0.00027397,7]
[344006379,1733182240975,-500.0,0.00027397,7]
[344006380,1733182240986,-500.0,0.00027397,7]
[344006381,1733182240998,-500.0,0.00027397,7]
[344006382,1733182241017,-500.0,0.00027397,7]
[344006383,1733182241027,-500.0,0.00027397,7]
[344006384,1733182241039,-500.0,0.00027397,7]
[344006385,1733182241050,-612.77,0.00027397,7]
[344006386,1733182241060,-500.0,0.00027397,7]
[344006387,1733182241070,-512.43621498,0.00027397,7]
[344006388,1733182241080,-500.0,0.00027397,7]
[344006389,1733182241089,-500.0,0.00027397,7]
[344006390,1733182241099,-500.0,0.00027397,7]
[344006391,1733182241109,-500.0,0.00027397,7]
[344006392,1733182241119,-500.0,0.00027397,7]
[344006393,1733182241128,-500.0,0.00027397,7]
[344006394,1733182241138,-500.0,0.00027397,7]
[344006395,1733182241147,-500.0,0.00027397,7]
[344006396,1733182241157,-500.0,0.00027397,7]
[344006397,1733182241167,-500.0,0.00027397,7]
[344006398,1733182241176,-154.63828917,0.00027397,7]
[344006399,1733182241186,-500.0,0.00027397,7]
[344006400,1733182241195,-501.53431727,0.00027397,7]
[344006401,1733182241205,-501.40569276,0.00027397,7]
[344006402,1733182241215,-500.0,0.00027397,7]
[344006403,1733182241224,-500.0,0.00027397,7]
[344006404,1733182241233,-500.0,0.00027397,7]
[344006405,1733182241243,-500.0,0.00027397,7]
[344006406,1733182241255,-500.0,0.00027397,7]
[344006407,1733182241264,-500.0,0.00027397,7]
[344006408,1733182241274,-500.0,0.00027397,7]
[344006409,1733182241284,-500.62331853,0.00027397,7]
[344006410,1733182241294,-200.0,0.00027397,7]
[344006411,1733182241305,-500.0,0.00027397,7]
[344006412,1733182241315,-500.0,0.00027397,7]
[344006413,1733182241324,-536.91309118,0.00027397,7]
[344006414,1733182241334,-500.0,0.00027397,7]
[344006415,1733182241344,-516.46850184,0.00027397,7]
[344006416,1733182241354,-500.0,0.00027397,7]
[344006417,1733182241364,-500.0,0.00027397,7]
[344006418,1733182241374,-500.0,0.00027397,7]
[344006419,1733182241383,-500.0,0.00027397,7]
[344006420,1733182241393,-500.0,0.00027397,7]
[344006421,1733182241402,-500.0,0.00027397,7]
[344006422,1733182241412,-500.0,0.00027397,7]
[344006423,1733182241422,-203.90209121,0.00027397,7]
[344006424,1733182241431,-500.0,0.00027397,7]
[344006425,1733182241440,-350.7913413,0.00027397,7]
[344006426,1733182241451,-500.0,0.00027397,7]
[344006427,1733182241466,-500.0,0.00027397,2]
[344006428,1733182241475,-500.0,0.00027397,7]
[344006429,1733182241485,-500.0,0.00027397,7]
[344006430,1733182241497,-500.0,0.00027397,2]
[344006431,1733182241507,-500.0,0.00027397,7]
[344006432,1733182241516,-500.0,0.00027397,7]
[344006433,1733182241526,-503.48643751,0.00027397,7]
[344006434,1733182241536,-500.0,0.00027397,7]
[344006435,1733182241545,-500.0,0.00027397,7]
[344006436,1733182241555,-504.92905195,0.00027397,7]
[344006437,1733182241564,-500.0,0.00027397,7]
[344006438,1733182241578,-424.89156663,0.00027397,7]
[344006439,1733182241588,-510.54330061,0.00027397,7]
[344006440,1733182241598,-500.0,0.00027397,7]
[344006441,1733182241609,-500.0,0.00027397,7]
[344006442,1733182241620,-505.15794543,0.00027397,7]
[344006443,1733182241630,-500.0,0.00027397,7]
[344006444,1733182241641,-500.0,0.00027397,7]
[344006445,1733182241651,-979.74,0.00027397,7]
[344006446,1733182241661,-500.0,0.00027397,7]
[344006447,1733182241671,-500.0,0.00027397,7]
[344006448,1733182241681,-500.0,0.00027397,7]
[344006449,1733182241691,-500.0,0.00027397,7]
[344006450,1733182241701,-500.0,0.00027397,7]
[344006451,1733182241711,-500.0,0.00027397,7]
[344006452,1733182241721,-500.0,0.00027397,7]
[344006453,1733182241731,-500.0,0.00027397,7]
[344006454,1733182241741,-500.0,0.00027397,7]
[344006455,1733182241754,-500.0,0.00027397,7]
[344006456,1733182241763,-500.0,0.00027397,7]
[344006457,1733182241773,-500.0,0.00027397,7]
[344006458,1733182241783,-500.0,0.00027397,7]
[344006459,1733182241793,-346.79130758,0.00027397,7]
[344006460,1733182241803,-500.0,0.00027397,7]
[344006461,1733182241813,-500.0,0.00027397,7]
[344006462,1733182241823,-500.0,0.00027397,7]
[344006463,1733182241833,-500.0,0.00027397,7]
[344006464,1733182241842,-500.0,0.00027397,7]
[344006465,1733182241852,-500.0,0.00027397,7]
[344006466,1733182241862,-560.76234827,0.00027397,7]
[344006467,1733182241872,-500.0,0.00027397,7]
[344006468,1733182241882,-500.0,0.00027397,7]
[344006469,1733182241892,-503.68513139,0.00027397,7]
[344006470,1733182241901,-500.0,0.00027397,7]
[344006471,1733182241911,-500.0,0.00027397,7]
[344006472,1733182241921,-502.04611367,0.00027397,7]
[344006473,1733182241930,-500.0,0.00027397,7]
[344006474,1733182241940,-503.40321897,0.00027397,7]
[344006475,1733182241951,-552.57232606,0.00027397,7]
[344006476,1733182241960,-503.55041977,0.00027397,7]
[344006477,1733182241969,-500.0,0.00027397,7]
[344006478,1733182241979,-500.0,0.00027397,7]
[344006479,1733182241989,-500.0,0.00027397,7]
[344006480,1733182242001,-500.0,0.00027397,7]
[344006481,1733182242010,-500.0,0.00027397,7]
[344006482,1733182242020,-1967.64,0.00027397,7]
[344006483,1733182242029,-500.0,0.00027397,7]
[344006484,1733182242048,-500.0,0.00027397,7]
[344006485,1733182242060,-700.18,0.00027397,7]
[344006486,1733182242070,-500.0,0.00027397,7]
[344006487,1733182242080,-500.0,0.00027397,7]
[344006488,1733182242090,-500.0,0.00027397,7]
[344006489,1733182242100,-503.15478235,0.00027397,7]
[344006490,1733182242110,-500.0,0.00027397,7]
[344006491,1733182242120,-500.0,0.00027397,7]
[344006492,1733182242130,-500.0,0.00027397,7]
[344006493,1733182242140,-303.89678298,0.00027397,7]
[344006494,1733182242150,-415.05218331,0.00027397,7]
[344006495,1733182242160,-168.0,0.00027397,7]
[344006496,1733182242170,-500.0,0.00027397,7]
[344006497,1733182242180,-402.00952747,0.00027397,7]
[344006498,1733182242190,-500.0,0.00027397,7]
[344006499,1733182242200,-500.0,0.00027397,7]
[344006500,1733182242210,-500.0,0.00027397,7]
[344006501,1733182242219,-500.0,0.00027397,7]
[344006502,1733182242229,-504.89856016,0.00027397,7]
[344006503,1733182242238,-500.0,0.00027397,7]
[344006504,1733182242250,-500.0,0.00027397,7]
[344006505,1733182242259,-500.0,0.00027397,7]
[344006506,1733182242269,-500.0,0.00027397,7]
[344006507,1733182242280,-500.0,0.00027397,7]
[344006508,1733182242289,-500.0,0.00027397,7]
[344006509,1733182242299,-500.0,0.00027397,7]
[344006510,1733182242309,-500.0,0.00027397,7]
[344006511,1733182242319,-500.0,0.00027397,7]
[344006512,1733182242329,-500.0,0.00027397,7]
[344006513,1733182242338,-500.0,0.00027397,7]
[344006514,1733182242348,-500.0,0.00027397,7]
[344006515,1733182242357,-500.0,0.00027397,7]
[344006516,1733182242367,-500.0,0.00027397,7]
[344006517,1733182242377,-500.0,0.00027397,7]
[344006518,1733182242386,-747.87,0.00027397,7]
[344006519,1733182242396,-411.83761519,0.00027397,7]
[344006520,1733182242406,-500.0,0.00027397,7]
[344006521,1733182242416,-500.0,0.00027397,7]
[344006522,1733182242426,-151.34322136,0.00027397,7]
[344006523,1733182242436,-500.0,0.00027397,7]
[344006524,1733182242446,-500.0,0.00027397,7]
[344006525,1733182242556,-777.67,0.00027397,7]
[344006526,1733182242568,-563.6554293,0.00027397,7]
[344006527,1733182242579,-500.0,0.00027397,7]
[344006528,1733182242588,-500.0,0.00027397,7]
[344006529,1733182242598,-500.0,0.00027397,7]
[344006530,1733182242609,-500.0,0.00027397,7]
[344006531,1733182242619,-500.0,0.00027397,7]
[344006532,1733182242629,-624.75,0.00027397,7]
[344006533,1733182242638,-500.0,0.00027397,7]
[344006534,1733182242650,-500.0,0.00027397,7]
[344006535,1733182242660,-4942.06,0.00027397,7]
[344006537,1733182242670,-500.0,0.00027397,7]
[344006538,1733182242679,-500.0,0.00027397,7]
[344006539,1733182242689,-500.0,0.00027397,7]
[344006540,1733182242699,-522.00861519,0.00027397,7]
[344006541,1733182242708,-500.0,0.00027397,7]
[344006542,1733182242717,-500.0,0.00027397,7]
[344006543,1733182242727,-7229.5,0.00027397,7]
[344006544,1733182242737,-500.0,0.00027397,7]
[344006545,1733182242748,-500.0,0.00027397,7]
[344006547,1733182242758,-1829.43,0.00027397,7]
[344006549,1733182242767,-348.93729154,0.00027397,7]
[344006550,1733182242778,-500.0,0.00027397,7]
[344006551,1733182242787,-567.2450395,0.00027397,7]
[344006552,1733182242798,-500.0,0.00027397,7]
[344006553,1733182242807,-347.90374482,0.00027397,7]
[344006554,1733182242817,-500.0,0.00027397,7]
[344006555,1733182242827,-500.0,0.00027397,7]
[344006556,1733182242837,-500.0,0.00027397,7]
[344006557,1733182242846,-500.0,0.00027397,7]
[344006558,1733182242856,-500.0,0.00027397,7]
[344006559,1733182242866,-500.0,0.00027397,7]
[344006560,1733182242875,-915.2,0.00027397,7]
[344006561,1733182242884,-585.73225314,0.00027397,7]
[344006575,1733182243154,-1000.0,0.00025463,2]
[344006576,1733182243163,-10.96774686,0.00027397,7]
[344006577,1733182243173,-550.87598257,0.00027397,7]
[344006578,1733182243182,-500.0,0.00027397,7]
[344006579,1733182243192,-500.0,0.00027397,7]
[344006580,1733182243201,-503.59843378,0.00027397,7]
[344006581,1733182243211,-500.0,0.00027397,7]
[344006583,1733182243220,-500.0,0.00027397,7]
[344006584,1733182243230,-500.0,0.00027397,7]
[344006585,1733182243239,-2015.44,0.00027397,7]
[344006586,1733182243249,-500.0,0.00027397,7]
[344006588,1733182243259,-500.0,0.00027397,7]
[344006590,1733182243268,-500.0,0.00027397,7]
[344006592,1733182243277,-500.0,0.00027397,7]
[344006594,1733182243286,-1059.57,0.00027397,7]
[344006596,1733182243295,-500.0,0.00027397,7]
[344006597,1733182243303,-500.0,0.00027397,7]
[344006598,1733182243313,-665.95,0.00027397,7]
[344006599,1733182243322,-500.0,0.00027397,7]
[344006600,1733182243331,-500.0,0.00027397,7]
[344006601,1733182243340,-560.94,0.00027397,7]
[344006602,1733182243350,-547.91869106,0.00027397,7]
[344006603,1733182243359,-500.0,0.00027397,7]
[344006604,1733182243368,-500.0,0.00027397,7]
[344006605,1733182243377,-500.0,0.00027397,7]
[344006606,1733182243386,-500.0,0.00027397,7]
[344006607,1733182243396,-500.0,0.00027397,7]
[344006608,1733182243405,-500.0,0.00027397,7]
[344006609,1733182243414,-505.94799409,0.00027397,7]
[344006610,1733182243423,-500.0,0.00027397,7]
[344006611,1733182243432,-500.94023252,0.00027397,7]
[344006612,1733182243441,-2373.48,0.00027397,7]
[344006613,1733182243450,-500.0,0.00027397,7]
[344006614,1733182243460,-500.0,0.00027397,7]
[344006615,1733182243469,-513.27182886,0.00027397,7]
[344006616,1733182243478,-500.0,0.00027397,7]
[344006617,1733182243487,-500.0,0.00027397,7]
[344006618,1733182243498,-42.62837331,0.00027478,2]
[344006619,1733182243510,-580.72062669,0.00027478,2]
[344006620,1733182243520,-2173.0,0.00027478,2]
[344006621,1733182243529,-2376.0,0.00027478,2]
[344006622,1733182243538,-150.711,0.00027478,2]
[344006623,1733182243548,-554.97666827,0.00027499,2]
[344006624,1733182243557,-43848.42859491,0.000275,2]
[344006625,1733182243571,-666.0,0.0002753,2]
[344006626,1733182243580,-33000.0,0.0002755,2]
[344006627,1733182243590,-461.1232412,0.00027571,2]
[344006628,1733182243600,-383.96371985,0.000276,2]
[344006629,1733182243611,-425.8357093,0.00027607,30]
[344006630,1733182243621,-420.0,0.00027652,2]
[344006631,1733182243630,-151.0,0.00027671,2]
[344006632,1733182243640,-151.0,0.00027671,2]
[344006633,1733182243649,-500.0,0.00027671,7]
[344006634,1733182243659,-293.04108335,0.00027671,7]
[344006635,1733182243669,-500.0,0.00027671,7]
[344006636,1733182243678,-500.0,0.00027671,7]
[344006637,1733182243688,-500.0,0.00027671,7]
[344006638,1733182243697,-570.22696149,0.00027671,7]
[344006639,1733182243707,-500.0,0.00027671,7]
[344006640,1733182243716,-500.0,0.00027671,7]
[344006641,1733182243725,-500.0,0.00027671,7]
[344006642,1733182243735,-500.0,0.00027671,7]
[344006643,1733182243745,-500.0,0.00027671,7]
[344006644,1733182243755,-500.0,0.00027671,7]
[344006645,1733182243764,-500.0,0.00027671,7]
[344006646,1733182243773,-500.0,0.00027671,7]
[344006647,1733182243783,-500.0,0.00027671,7]
[344006648,1733182243792,-500.0,0.00027671,7]
[344006649,1733182243802,-500.0,0.00027671,7]
[344006650,1733182243811,-477.54817384,0.00027671,7]
[344006651,1733182243821,-506.9871602,0.00027671,7]
[344006652,1733182243830,-500.0,0.00027671,7]
[344006653,1733182243840,-500.0,0.00027671,7]